bitfinex/quotes_ETHUSD_20240714
["timestamp","ask_amount","ask_price","bid_price","bid_amount"]
[1720934886315,1.07985449,3208.4,3208.2,5.47873]
[1720934886545,1.07985449,3208.3,3208.2,6.37808723]
[1720934886731,1.07985449,3208.5,3208.2,6.37808723]
[1720934887412,1.07985449,3208.5,3208.3,3.11691]
[1720934888805,0.32662887,3208.6,3208.4,3.11681]
[1720934889003,1.07977654,3208.5,3208.4,3.11681]
[1720934889240,0.32662887,3208.6,3208.4,3.75460672]
[1720934889462,1.07977513,3208.5,3208.4,3.75460672]
[1720934890021,0.32657322,3209.0,3208.5,3.11668]
[1720934890235,1.07973966,3208.9,3208.5,3.11668]
[1720934890543,1.07973966,3208.8,3208.5,3.11668]
[1720934890758,1.07973966,3208.8,3208.4,0.63779672]
[1720934890759,1.07973966,3208.9,3208.8,5.47822]
[1720934892022,0.32657322,3209.0,3208.8,5.47822]
[1720934892224,1.07970295,3208.9,3208.8,2.3618]
[1720934892423,1.07970295,3208.9,3208.5,2.3618]
[1720934892642,1.07970295,3208.8,3208.5,6.09012767]
[1720934892947,1.07970295,3208.7,3208.5,2.97343767]
[1720934893141,1.07970295,3208.9,3208.8,3.11642]
[1720934893343,1.07970295,3208.9,3208.5,2.3618]
[1720934893344,1.07970295,3208.9,3208.5,5.47852]
[1720934893657,1.07970295,3208.8,3208.5,5.47852]
[1720934893811,1.07970295,3208.7,3208.6,3.11662]
[1720934894011,1.07970295,3208.7,3208.5,2.3618]
[1720934894210,0.32657322,3209.0,3208.5,2.3618]
[1720934894211,1.07970295,3208.6,3208.5,2.3618]
[1720934894453,1.07970295,3208.9,3208.5,2.3618]
[1720934895045,1.07970295,3208.9,3208.2,6.11694]
[1720934895241,1.07970295,3208.9,3208.1,3.11708]
[1720934895242,0.32657322,3209.0,3208.1,5.47888]
[1720934895454,1.07979105,3208.8,3208.2,3.664888]
[1720934895636,1.07979105,3208.7,3208.3,3.11688]
[1720934895836,1.07979105,3208.9,3208.3,3.11688]
[1720934896202,1.07979105,3208.8,3208.3,3.11688]
[1720934896370,1.07979105,3208.8,3208.3,3.1169]
[1720934896537,1.07979105,3208.7,3208.3,3.1169]
[1720934896868,1.07979105,3208.6,3208.3,3.7195588]
[1720934897072,1.07979105,3208.9,3208.3,3.7195588]
[1720934897940,1.07979105,3208.9,3208.4,3.11679]
[1720934898158,1.07979105,3208.9,3208.6,2.3618]
[1720934898639,1.07975043,3208.8,3208.6,2.3618]
[1720934898960,0.32657322,3209.0,3208.6,2.3618]
[1720934898961,1.07975043,3208.7,3208.6,2.3618]
[1720934899158,1.07975043,3208.9,3208.6,2.3618]
[1720934899339,1.07975043,3208.8,3208.6,5.47842]
[1720934899538,1.07975043,3208.7,3208.6,5.47842]
[1720934899769,1.07975043,3208.7,3208.6,6.026262]
[1720934900388,1.07975043,3208.7,3208.3,3.11689]
[1720934900539,1.07975043,3208.6,3208.3,3.11689]
[1720934900734,1.07975043,3208.9,3208.3,3.11689]
[1720934900977,1.07975043,3208.8,3208.4,3.11681]
[1720934901146,1.07975043,3208.9,3208.4,3.11681]
[1720934901877,0.32657322,3209.0,3208.4,3.11681]
[1720934902038,1.07979808,3208.8,3208.4,3.11681]
[1720934902246,1.07979808,3208.7,3208.5,3.11664]
[1720934902469,1.07979808,3208.6,3208.5,3.11664]
[1720934903468,1.07979808,3208.6,3208.5,5.59444]
[1720934904966,0.32657322,3209.0,3208.6,3.11653]
[1720934905165,1.07963275,3208.9,3208.6,3.11653]
[1720934905404,1.07963275,3208.8,3208.7,0.871097]
[1720934905576,0.32657322,3209.0,3208.7,0.871097]
[1720934905577,1.07963275,3208.9,3208.7,0.871097]
[1720934906809,1.07963275,3208.9,3208.7,3.987617]
[1720934907177,1.07963275,3208.9,3208.8,3.11642]
[1720934908497,0.32657322,3209.0,3208.9,3.11633]
[1720934908826,1.40622254,3209.0,3208.9,3.8267247]
[1720934909384,1.40622254,3209.0,3208.8,3.11641]
[1720934909585,1.07964932,3208.9,3208.6,3.11659]
[1720934910769,1.07964932,3208.9,3208.5,5.59449]
[1720934911869,0.32657322,3209.0,3208.5,5.59449]
[1720934912184,1.07971762,3208.9,3208.5,5.59449]
[1720934912383,1.07972261,3208.8,3208.5,5.59449]
[1720934912586,0.32657322,3209.0,3208.5,5.59449]
[1720934912587,1.07972261,3208.7,3208.5,5.59449]
[1720934912791,1.07972261,3208.9,3208.5,5.59449]
[1720934913105,1.07972261,3208.8,3208.5,6.52589298]
[1720934913275,1.07972261,3208.9,3208.5,6.52589298]
[1720934913481,0.32657322,3209.0,3208.5,6.52589298]
[1720934913482,1.07972261,3208.8,3208.5,6.52589298]
[1720934913736,1.07972261,3208.7,3208.5,6.52589298]
[1720934913890,1.07972261,3208.6,3208.5,6.52589298]
[1720934915311,1.0796746,3208.6,3208.5,6.52589298]
[1720934916847,0.32657322,3209.0,3208.8,3.11641]
[1720934916986,1.07964834,3208.9,3208.8,3.11641]
[1720934918601,0.32657322,3209.0,3208.8,3.11641]
[1720934918799,1.07964862,3208.9,3208.8,3.11641]
[1720934920844,1.07964862,3208.9,3208.8,3.90141]
[1720934921019,1.07964862,3208.9,3208.8,4.603213]
[1720934921989,1.07966476,3208.9,3208.8,3.90141]
[1720934925114,1.07966476,3208.9,3208.8,6.38591]
[1720934925333,0.32657322,3209.0,3208.9,3.11633]
[1720934925643,1.40622779,3209.0,3208.9,3.11633]
[1720934925849,1.40622237,3209.0,3208.9,3.11633]
[1720934926339,1.40622237,3209.0,3208.9,4.066565]
[1720934926530,1.07964915,3209.0,3208.9,4.066565]
[1720934927335,1.07964915,3209.0,3208.9,3.11633]
[1720934928546,0.32651754,3209.5,3208.9,3.11633]
[1720934928717,1.07964152,3209.4,3209.2,0.785]
[1720934928924,1.07964152,3209.3,3209.2,0.785]
[1720934929243,1.07964152,3209.4,3209.2,0.785]
[1720934929547,1.07964152,3209.3,3209.2,0.785]
[1720934929734,1.07964152,3209.4,3209.2,0.785]
[1720934929904,0.32651754,3209.5,3209.2,0.785]
[1720934929905,1.07964152,3209.3,3209.2,0.785]
[1720934931955,1.07958534,3209.3,3209.2,0.785]
[1720934935255,0.32651754,3209.5,3209.2,0.785]
[1720934935413,1.07958888,3209.3,3209.2,0.785]
[1720934936551,1.07958888,3209.3,3208.8,5.60084]
[1720934936851,0.32651754,3209.5,3209.2,0.785]
[1720934937055,1.07959175,3209.4,3209.2,0.785]
[1720934937260,1.07959175,3209.3,3209.2,0.785]
[1720934937924,1.07959175,3209.4,3209.2,0.785]
[1720934938131,1.07959175,3209.3,3209.2,0.785]
[1720934938516,1.07963424,3209.3,3209.2,0.785]
[1720934938922,0.32651754,3209.5,3209.2,0.785]
[1720934939120,1.07963187,3209.4,3209.2,0.785]
[1720934939347,1.07963187,3209.3,3209.2,0.785]
[1720934941289,1.07961148,3209.3,3209.2,0.785]
[1720934942241,1.07960997,3209.3,3209.2,0.785]
[1720934944271,0.32651754,3209.5,3209.2,0.785]
[1720934944570,1.07958955,3209.4,3209.2,0.785]
[1720934944733,1.07958955,3209.3,3209.2,0.785]
[1720934947252,1.07958955,3209.3,3209.2,9.29588]
[1720934947579,0.32651754,3209.5,3209.4,3.11584]
[1720934947893,0.32651754,3209.5,3209.4,3.90084]
[1720934948058,1.4059536,3209.5,3209.4,3.90084]
[1720934950548,1.07943606,3209.5,3209.4,12.35779109]
[1720934950891,1.3672,3210.9,3210.0,3.11517]
[1720934950892,0.3264486,3210.4,3210.0,3.11517]
[1720934951075,1.07921696,3210.3,3210.1,2.2788]
[1720934951251,0.3264486,3210.4,3210.2,0.785]
[1720934951590,1.07920368,3210.3,3210.2,0.785]
[1720934951753,1.07920368,3210.3,3209.7,3.11553]
[1720934951942,1.07920368,3210.2,3210.1,0.785]
[1720934952346,1.07920368,3210.3,3210.1,0.785]
[1720934952600,1.07920368,3210.3,3209.4,4.32873791]
[1720934952601,1.07920368,3210.3,3209.4,3.0]
[1720934952880,1.35648891,3210.3,3209.9,0.785]
[1720934953088,1.07920368,3210.2,3209.9,0.785]
[1720934953992,0.27728523,3210.3,3209.9,0.785]
[1720934954197,1.07936853,3210.2,3209.9,0.785]
[1720934954347,1.07938494,3210.1,3209.9,0.785]
[1720934954548,1.07938494,3210.0,3209.9,0.785]
[1720934955795,1.07938494,3210.0,3209.9,1.09138]
[1720934956999,1.07938494,3210.0,3209.9,0.785]
[1720934957160,0.3264486,3210.4,3209.9,0.785]
[1720934957361,1.07932674,3210.3,3210.2,0.785]
[1720934962061,1.07932674,3210.3,3210.2,0.7678]
[1720934962496,1.07932674,3210.3,3210.0,0.785]
[1720934962697,1.07932674,3210.2,3210.0,0.785]
[1720934962901,1.07932674,3210.1,3210.0,0.785]
[1720934963401,1.07932674,3210.3,3210.0,0.785]
[1720934963962,0.3264486,3210.4,3210.0,0.785]
[1720934963963,1.07934153,3210.2,3210.0,0.785]
[1720934964302,1.07934153,3210.1,3210.0,0.785]
[1720934964480,1.07933288,3210.1,3210.0,0.785]
[1720934966275,1.07933288,3210.1,3209.4,6.11578]
[1720934966479,0.3264486,3210.4,3210.0,0.785]
[1720934966669,2.44656366,3210.3,3209.5,2.4161]
[1720934966896,1.07936366,3210.2,3209.7,0.785]
[1720934967182,1.07942789,3210.1,3209.7,0.785]
[1720934967383,1.07943686,3210.0,3209.7,0.785]
[1720934967680,1.07943686,3209.9,3209.7,0.785]
[1720934967996,1.07943686,3209.8,3209.7,0.785]
[1720934968322,1.07943686,3210.2,3209.7,0.785]
[1720934968609,1.35674595,3210.1,3209.7,0.785]
[1720934968788,1.35674595,3210.1,3209.9,0.785]
[1720934968789,1.07943686,3210.0,3209.9,0.785]
[1720934970679,1.07936373,3210.0,3209.9,0.785]
[1720934973759,0.32645402,3210.3,3209.9,0.785]
[1720934973913,1.07939331,3210.2,3209.9,0.785]
[1720934974114,1.07939331,3210.1,3209.9,0.785]
[1720934974346,1.07939331,3210.0,3209.9,0.785]
[1720934977021,0.32645402,3210.3,3209.9,0.785]
[1720934977349,1.07936367,3210.2,3209.9,0.785]
[1720934977695,0.32645402,3210.3,3210.1,3.2011]
[1720934977855,1.0792967,3210.2,3210.1,3.2011]
[1720934980533,1.07923493,3210.2,3210.1,3.2011]
[1720934982354,1.07923493,3210.2,3208.8,3.871736]
[1720934982355,1.07923493,3210.2,3209.2,2.2792]
[1720934982662,1.07923493,3210.1,3209.2,3.0642]
[1720934982863,1.07923493,3210.2,3209.2,3.0642]
[1720934983059,1.07923493,3210.1,3209.2,3.0642]
[1720934983387,1.07923493,3210.0,3209.8,3.0642]
[1720934983550,1.07923493,3210.2,3209.9,0.785]
[1720934983746,1.07923493,3210.2,3210.1,0.785]
[1720934983997,1.07923493,3210.2,3209.9,0.785]
[1720934984964,1.07923493,3210.2,3210.1,0.785]
[1720934986756,1.07923493,3210.2,3210.1,1.175036]
[1720934986956,0.32645402,3210.3,3210.1,1.175036]
[1720934987178,1.07926214,3210.2,3210.1,1.175036]
[1720934989416,1.07926214,3210.2,3210.1,3.454236]
[1720934990491,1.07921036,3210.2,3210.1,3.454236]
[1720934990968,1.0791836,3210.2,3210.1,6.569336]
[1720934992429,1.0791836,3210.2,3209.8,3.11544]
[1720934992590,1.0791836,3210.1,3209.9,2.2792]
[1720934992770,1.8641836,3210.6,3209.6,2.2792]
[1720934992967,1.0791836,3210.5,3209.6,2.2792]
[1720934993277,0.18641836,3210.4,3209.6,2.2792]
[1720934993491,1.07932221,3210.3,3209.6,3.0642]
[1720934993666,1.07930018,3210.2,3209.6,3.0642]
[1720934993873,1.07930018,3210.1,3209.6,3.0642]
[1720934994095,1.07930018,3210.3,3209.6,3.0642]
[1720934994379,1.07930018,3210.3,3209.8,0.785]
[1720934994910,1.07930018,3210.3,3209.6,3.0642]
[1720934995136,2.44650018,3210.3,3209.6,0.785]
[1720934995413,2.44650018,3210.3,3209.3,8.39511]
[1720934995414,1.07930018,3210.2,3209.8,0.785]
[1720934995609,1.07930018,3210.5,3209.8,0.785]
[1720934995810,1.35659077,3210.5,3209.8,0.785]
[1720934996171,1.07930018,3210.4,3209.9,2.2792]
[1720934996593,1.07930018,3210.6,3209.9,2.2792]
[1720934996827,1.07930018,3210.6,3209.8,0.785]
[1720934997037,1.07928888,3210.5,3209.8,0.785]
[1720934997338,1.07928888,3210.4,3209.8,0.785]
[1720934997489,1.07928888,3210.3,3209.8,0.785]
[1720934997689,1.07928888,3210.2,3209.8,0.785]
[1720934997886,1.07928888,3210.6,3209.8,1.175064]
[1720934998191,1.07928888,3210.6,3209.9,2.2792]
[1720934998387,1.07928888,3210.6,3210.0,0.785]
[1720934998599,1.07928888,3210.6,3210.2,0.785]
[1720934998799,1.07928888,3210.6,3209.9,5.39455]
[1720934998800,1.07928888,3210.6,3209.9,2.2792]
[1720934999003,1.07928888,3210.6,3209.9,3.0642]
[1720935000419,0.32640568,3210.7,3209.9,3.0642]
[1720935000724,1.07930235,3210.6,3209.9,3.0642]
[1720935000931,1.35659602,3210.5,3209.9,3.0642]
[1720935001144,1.07930522,3210.4,3209.9,3.0642]
[1720935002317,1.07930522,3210.4,3209.9,0.785]
[1720935002844,1.07930203,3210.3,3209.9,0.785]
[1720935002992,1.07930203,3210.2,3209.9,0.785]
[1720935003196,1.07930203,3210.1,3209.9,0.785]
[1720935003397,1.07930203,3210.6,3209.9,0.785]
[1720935003629,1.07929772,3210.5,3209.9,0.785]
[1720935003831,1.07929772,3210.4,3210.3,0.785]
[1720935004022,1.07929772,3210.6,3210.2,2.4922]
[1720935004230,1.07929772,3210.5,3210.2,2.4922]
[1720935004397,1.07929772,3210.4,3210.2,2.4922]
[1720935004601,1.07929772,3210.3,3210.2,2.4922]
[1720935005028,1.07929772,3210.3,3210.2,2.81992]
[1720935007400,1.07929772,3210.3,3210.0,3.11525]
[1720935007719,1.07929772,3210.2,3209.9,0.785]
[1720935007898,1.07929772,3210.1,3209.9,0.785]
[1720935008114,1.07929772,3210.0,3209.9,3.90036]
[1720935009245,0.32640568,3210.7,3210.0,3.11521]
[1720935009427,1.07925158,3210.6,3210.0,4.06599]
[1720935009599,1.07925158,3210.5,3210.0,4.06599]
[1720935009804,0.32640568,3210.7,3210.0,4.06599]
[1720935009805,1.07925158,3210.4,3210.0,4.06599]
[1720935010043,1.07925158,3210.3,3210.1,0.785]
[1720935010337,0.32640568,3210.7,3210.3,2.4922]
[1720935010499,1.07925489,3210.6,3210.3,2.4922]
[1720935010699,1.07925489,3210.5,3210.0,2.4922]
[1720935010946,1.07925489,3210.4,3209.5,6.2772]
[1720935011143,0.785,3210.6,3209.5,6.2772]
[1720935011144,1.07925489,3210.3,3209.5,6.2772]
[1720935011306,1.07925489,3210.2,3209.5,6.2772]
[1720935011496,1.07925489,3210.1,3209.5,6.2772]
[1720935011838,0.785,3210.6,3209.5,2.4922]
[1720935011839,1.07925489,3210.0,3209.5,2.4922]
[1720935012011,1.6936544,3210.1,3209.3,0.785]
[1720935012203,1.6936544,3210.1,3209.1,0.785]
[1720935012204,1.24862033,3210.0,3209.1,0.785]
[1720935012543,1.24862033,3210.0,3209.3,0.785]
[1720935012544,0.16936544,3210.0,3209.3,0.785]
[1720935012728,1.07947639,3209.9,3209.3,0.785]
[1720935013037,1.07950564,3209.8,3209.3,0.785]
[1720935013244,1.07950564,3209.7,3209.3,0.785]
[1720935013441,1.07950564,3209.9,3209.3,0.785]
[1720935013735,1.07950564,3209.8,3209.3,0.785]
[1720935013939,1.07950564,3209.9,3209.3,0.785]
[1720935014149,1.07950564,3209.8,3209.3,0.785]
[1720935015015,1.07950564,3209.8,3208.9,2.4922]
[1720935015209,1.07950564,3209.8,3209.1,0.785]
[1720935015737,0.15753255,3209.9,3209.1,0.785]
[1720935015738,1.07956165,3209.7,3209.1,0.785]
[1720935016052,1.07954538,3209.6,3209.1,0.785]
[1720935016204,1.07954538,3209.5,3209.1,0.785]
[1720935016404,1.07954538,3209.4,3209.1,0.785]
[1720935016607,1.07954538,3209.8,3209.1,0.785]
[1720935019142,0.15753255,3209.9,3209.1,0.785]
[1720935019330,1.07957287,3209.8,3209.1,0.785]
[1720935019531,1.07957287,3209.7,3209.1,0.785]
[1720935019837,1.07957287,3210.0,3209.1,0.785]
[1720935020029,1.07957287,3209.9,3209.1,0.785]
[1720935020231,1.07957287,3210.0,3209.1,0.785]
[1720935020542,1.07957287,3209.9,3209.1,0.785]
[1720935020741,1.07957287,3210.0,3209.1,0.785]
[1720935020907,1.07957287,3209.9,3209.1,0.785]
[1720935021112,1.07957287,3210.0,3209.1,0.785]
[1720935022219,1.3672,3209.9,3209.1,0.785]
[1720935022417,0.24467729,3209.8,3209.1,0.785]
[1720935022612,1.07960923,3209.7,3209.1,0.785]
[1720935022856,1.07960923,3209.6,3208.9,3.2772]
[1720935023024,0.24467729,3209.8,3208.9,3.2772]
[1720935023226,1.0796119,3209.7,3208.9,3.2772]
[1720935023439,1.0796119,3209.6,3208.9,3.2772]
[1720935023645,1.0796119,3209.7,3208.9,3.2772]
[1720935023814,1.0796119,3209.7,3209.1,0.785]
[1720935024018,1.0796119,3209.6,3209.3,0.785]
[1720935024244,1.0796119,3209.5,3209.3,0.785]
[1720935024449,0.3264544,3210.1,3209.4,2.447]
[1720935024646,0.3264544,3210.1,3209.5,0.785]
[1720935024647,1.07953826,3210.0,3209.5,0.785]
[1720935024856,0.3264544,3210.1,3209.5,0.785]
[1720935024857,1.07953826,3209.9,3209.5,0.785]
[1720935025064,1.07953826,3209.8,3209.5,0.785]
[1720935025259,1.07953826,3209.7,3209.5,0.785]
[1720935025465,1.07953826,3209.6,3209.5,0.785]
[1720935025818,1.07952869,3209.6,3209.4,2.447]
[1720935026031,1.07952869,3209.5,3209.4,2.447]
[1720935027580,1.07952869,3209.5,3209.4,3.232]
[1720935027877,3.2298811,3210.9,3209.4,3.232]
[1720935027878,1.3672,3210.9,3209.7,3.11553]
[1720935028063,2.15905739,3211.7,3209.4,1.419801]
[1720935028064,1.86433661,3210.8,3209.8,3.232]
[1720935028265,0.32645268,3210.4,3209.8,3.232]
[1720935028471,1.07933661,3210.3,3209.8,3.232]
[1720935028779,1.07933661,3210.2,3209.8,3.232]
[1720935028983,1.0793664,3210.1,3209.6,6.34764]
[1720935029158,1.0793664,3210.0,3209.7,0.634764]
[1720935029476,1.0793664,3210.4,3209.7,0.634764]
[1720935029663,1.0793664,3210.3,3209.6,3.232]
[1720935029869,1.0793664,3210.5,3209.6,2.447]
[1720935030174,0.785,3210.6,3209.7,0.785]
[1720935030175,1.0793664,3210.4,3209.7,0.785]
[1720935030376,1.0793664,3210.5,3209.6,2.447]
[1720935030581,0.785,3210.2,3209.3,2.447]
[1720935030887,1.55363664,3210.4,3209.3,2.447]
[1720935030888,1.0793664,3210.1,3209.3,2.447]
[1720935031181,1.0793664,3210.0,3209.3,2.447]
[1720935031339,1.0793664,3210.3,3209.3,2.447]
[1720935031542,1.4211667,3210.2,3209.3,2.447]
[1720935031744,1.0793664,3210.1,3209.4,0.785]
[1720935032484,1.07949792,3210.0,3209.4,0.785]
[1720935032680,1.07949792,3210.0,3209.3,2.447]
[1720935032681,1.07949792,3209.9,3209.3,2.447]
[1720935032990,1.07949792,3209.8,3209.3,2.447]
[1720935033167,1.07949792,3209.7,3209.4,0.556302]
[1720935033361,1.07949792,3209.6,3209.4,3.672082]
[1720935033676,1.07949792,3209.5,3209.4,3.672082]
[1720935034786,1.07949792,3209.5,3209.4,6.119082]
[1720935035362,1.07949792,3209.5,3209.4,3.003302]
[1720935035567,3.0,3210.6,3209.4,3.003302]
[1720935035762,1.69364312,3210.7,3209.4,5.56284]
[1720935035763,1.54884127,3210.5,3209.4,5.56284]
[1720935036081,1.07948266,3210.4,3209.4,5.56284]
[1720935036284,1.07948266,3210.3,3209.4,5.56284]
[1720935036462,1.07948266,3210.4,3209.4,5.56284]
[1720935036661,1.07948266,3210.3,3209.4,5.56284]
[1720935036881,1.07948266,3210.2,3209.4,6.430721]
[1720935037047,1.07948266,3210.1,3209.4,6.430721]
[1720935037242,1.07948266,3210.0,3209.4,6.430721]
[1720935037443,1.07946709,3209.9,3209.4,6.430721]
[1720935037673,1.07946709,3209.8,3209.5,3.11574]
[1720935037906,0.46936431,3210.5,3209.6,0.6430621]
[1720935037907,1.07946709,3210.4,3209.6,0.6430621]
[1720935038052,1.07946709,3210.3,3209.5,3.11574]
[1720935038246,0.46936431,3210.5,3209.5,3.11574]
[1720935038247,1.07946709,3210.2,3209.5,3.11574]
[1720935038589,1.07946709,3210.1,3209.5,3.11574]
[1720935038790,1.07946709,3210.0,3209.5,3.11574]
[1720935039093,0.46936431,3210.5,3209.5,3.11574]
[1720935039278,1.42633772,3210.4,3209.5,3.11574]
[1720935039449,0.46936431,3210.5,3209.5,3.11574]
[1720935039450,1.07940129,3210.3,3209.5,3.11574]
[1720935039647,1.07940129,3210.2,3209.5,3.11574]
[1720935039952,1.07940129,3210.1,3209.6,2.447]
[1720935040275,1.07940129,3210.0,3209.6,2.447]
[1720935040456,2.44660129,3210.4,3209.6,2.447]
[1720935040668,1.32406142,3210.3,3209.6,2.447]
[1720935040994,1.07940129,3210.2,3209.6,2.447]
[1720935041180,1.07940129,3210.1,3209.6,2.447]
[1720935041348,1.07940129,3210.0,3209.6,2.447]
[1720935041558,1.07940129,3209.9,3209.6,2.447]
[1720935041772,1.07940129,3209.8,3209.6,2.447]
[1720935041972,1.07940129,3210.2,3209.2,3.11603]
[1720935042162,1.07940129,3210.1,3209.3,2.3631]
[1720935042365,0.16118601,3210.2,3209.3,2.3631]
[1720935042673,1.07951442,3210.1,3209.3,2.3631]
[1720935042873,1.07951442,3210.0,3209.3,2.3631]
[1720935043050,1.07951442,3209.9,3209.3,2.3631]
[1720935043256,1.07951442,3209.8,3209.3,2.3631]
[1720935043493,0.16118601,3210.2,3209.0,10.53622]
[1720935043494,1.07951442,3209.7,3209.0,9.7831]
[1720935043793,1.07951442,3209.6,3209.0,9.7831]
[1720935043953,0.16118601,3210.2,3209.0,9.7831]
[1720935043954,1.07951442,3209.5,3209.0,9.7831]
[1720935044154,1.07951442,3209.8,3209.0,9.7831]
[1720935044352,1.07951442,3209.7,3209.0,9.7831]
[1720935044592,1.07951442,3209.8,3209.0,9.7831]
[1720935044796,1.07951442,3209.7,3209.0,9.7831]
[1720935045098,1.07951442,3209.6,3209.0,9.7831]
[1720935045309,1.07951442,3209.8,3209.0,9.7831]
[1720935045469,1.07951442,3209.7,3209.0,9.7831]
[1720935045672,0.32648632,3209.9,3209.0,9.7831]
[1720935045990,1.07957027,3209.8,3209.0,9.7831]
[1720935046197,1.07957027,3209.7,3209.0,9.7831]
[1720935046403,1.07957027,3209.8,3209.0,9.7831]
[1720935046615,1.07957027,3209.7,3209.0,9.7831]
[1720935046802,1.07957027,3209.8,3209.0,9.7831]
[1720935047015,1.07957027,3209.7,3209.0,9.7831]
[1720935047330,1.07957027,3209.6,3209.2,2.3631]
[1720935047627,1.07957027,3209.5,3209.2,5.47913]
[1720935047784,1.07957027,3209.4,3209.2,5.47913]
[1720935047987,0.32648632,3209.9,3209.3,0.547913]
[1720935048311,1.07950936,3209.8,3209.2,5.47913]
[1720935048515,1.07950936,3209.7,3209.2,5.47913]
[1720935048822,0.32648632,3209.9,3209.4,2.3631]
[1720935049032,1.07947857,3209.6,3209.4,2.3631]
[1720935049188,0.32648632,3209.9,3209.5,0.547903]
[1720935049381,1.07947476,3209.8,3209.5,0.547903]
[1720935049706,1.07947476,3209.7,3209.5,0.547903]
[1720935050024,0.32648632,3209.9,3209.6,2.3631]
[1720935050223,1.07945626,3209.8,3209.6,2.3631]
[1720935050425,1.07945626,3209.7,3209.6,2.3631]
[1720935050716,1.07945626,3209.8,3209.6,2.3631]
[1720935051024,1.07945626,3209.7,3209.6,2.3631]
[1720935051817,1.07945626,3209.7,3209.6,2.910993]
[1720935051988,1.07945626,3209.7,3209.6,6.026643]
[1720935052188,1.07938693,3209.7,3209.6,6.026643]
[1720935052425,1.07939155,3209.7,3209.6,6.026643]
[1720935053186,1.07939155,3209.7,3209.6,5.47875]
[1720935053599,1.07939155,3209.7,3209.1,5.47923]
[1720935053832,1.07939155,3209.6,3209.1,5.47923]
[1720935054125,1.07939155,3209.8,3209.1,2.3631]
[1720935054291,1.07939155,3209.5,3209.1,2.3631]
[1720935054618,1.07939155,3209.4,3209.1,2.3631]
[1720935054794,1.07939155,3209.8,3209.1,2.3631]
[1720935054999,1.07939155,3209.7,3209.1,2.3631]
[1720935055205,1.07939155,3209.6,3209.1,2.3631]
[1720935055416,1.07939155,3209.8,3209.1,2.3631]
[1720935055718,1.07939155,3209.7,3209.1,2.3631]
[1720935055933,1.07939155,3209.8,3209.1,2.3631]
[1720935056227,1.07939155,3209.7,3209.1,2.3631]
[1720935056588,1.07939155,3209.6,3209.1,2.3631]
[1720935056710,1.07939155,3209.6,3209.5,0.785]
[1720935057032,1.07939155,3209.8,3209.5,0.785]
[1720935057211,1.07939155,3209.7,3209.5,0.785]
[1720935057532,1.07939155,3209.6,3209.5,0.785]
[1720935057733,1.07939155,3209.8,3209.5,0.785]
[1720935057932,1.07939155,3209.7,3209.3,0.785]
[1720935058137,1.07939155,3209.8,3209.3,0.785]
[1720935058307,0.32648632,3209.9,3209.2,0.785]
[1720935058308,1.07939155,3209.7,3209.2,0.785]
[1720935058502,1.07939155,3209.6,3209.2,0.785]
[1720935058699,1.07939155,3209.8,3209.2,0.785]
[1720935059040,1.35686762,3209.7,3209.2,0.785]
[1720935059193,1.07955983,3209.6,3209.2,0.785]
[1720935059399,1.07955983,3209.5,3209.2,0.785]
[1720935059696,1.07955983,3209.4,3209.2,0.785]
[1720935059902,1.07955983,3209.6,3209.2,0.785]
[1720935060132,1.07955983,3209.5,3209.2,0.785]
[1720935060438,1.07955983,3209.4,3209.2,0.785]
[1720935060634,1.07955983,3209.6,3209.2,0.785]
[1720935060801,1.07955983,3209.5,3209.2,0.785]
[1720935060998,1.07955983,3209.6,3208.7,9.7831]
[1720935061331,0.27730779,3209.7,3209.0,0.785]
[1720935061332,0.32650808,3209.4,3209.0,0.785]
[1720935061531,1.07966943,3209.3,3209.0,0.785]
[1720935061699,0.32650808,3209.4,3209.0,0.785]
[1720935061905,1.0796831,3209.3,3209.0,0.785]
[1720935062137,1.0796831,3209.2,3209.0,0.785]
[1720935062336,1.0796831,3209.1,3209.0,0.785]
[1720935062495,1.0796831,3209.3,3209.0,0.785]
[1720935063138,1.0796831,3209.3,3208.7,10.5681]
[1720935064001,1.0796831,3209.2,3208.7,10.5681]
[1720935064227,1.0796831,3209.1,3208.7,9.7831]
[1720935064544,1.3672,3209.3,3208.7,7.42]
[1720935064702,1.24917972,3209.2,3208.7,7.42]
[1720935065011,1.07980891,3209.1,3208.7,7.42]
[1720935065840,1.07980891,3209.1,3208.4,2.3441]
[1720935066536,2.44700891,3209.1,3208.1,9.7641]
[1720935066753,1.07980891,3209.0,3208.1,9.7641]
[1720935067036,1.34144688,3209.0,3208.1,9.7641]
[1720935067226,1.07980891,3208.9,3208.1,9.7641]
[1720935067828,1.07987882,3208.8,3208.1,9.7641]
[1720935068134,1.07987882,3208.7,3208.1,9.7641]
[1720935068307,3.26163797,3209.0,3208.1,9.7641]
[1720935068308,1.07987882,3208.9,3208.1,9.7641]
[1720935068508,0.43415168,3208.8,3208.1,9.7641]
[1720935068849,1.07987882,3208.7,3208.1,9.7641]
[1720935069615,1.07987882,3208.7,3208.1,2.3441]
[1720935070149,1.07987882,3208.7,3208.0,1.0]
[1720935070306,1.3672,3208.6,3208.0,1.0]
[1720935070509,1.3245867,3208.5,3208.0,1.0]
[1720935070740,1.07987882,3208.4,3208.0,1.0]
[1720935071529,1.80135168,3208.8,3208.0,1.0]
[1720935071530,1.07987882,3208.3,3208.0,1.0]
[1720935071735,1.07987882,3208.7,3208.0,1.0]
[1720935071930,1.07987882,3208.6,3208.0,1.0]
[1720935072133,1.07987882,3208.7,3208.0,1.0]
[1720935072342,1.36800187,3208.6,3208.0,1.0]
[1720935072522,1.07987882,3208.5,3208.0,1.0]
[1720935073943,1.3672,3208.4,3208.0,1.0]
[1720935074249,1.08022501,3208.3,3208.0,1.0]
[1720935074545,1.3672,3208.4,3208.0,1.0]
[1720935074546,1.08022501,3208.2,3208.0,1.0]
[1720935074748,4.3672,3208.4,3208.0,1.0]
[1720935074749,1.08022845,3208.1,3208.0,1.0]